lending/lending_fUSD_20260310
["ID","MTS","AMOUNT","RATE_DAILY","PERIOD"]
[408078783,1773114656692,-500.0,0.00019969,2]
[408078784,1773114656702,-500.0,0.00019969,2]
[408078785,1773114656711,-339.76755962,0.00019969,2]
[408078786,1773114656721,-500.0,0.00019969,2]
[408078787,1773114656731,-500.0,0.00019969,2]
[408078788,1773114656744,-500.0,0.00019969,2]
[408078789,1773114656755,-500.0,0.00019969,2]
[408078790,1773114656765,-500.0,0.00019969,2]
[408078791,1773114656776,-500.0,0.00019969,2]
[408078792,1773114656786,-500.0,0.00019969,2]
[408078793,1773114656796,-500.0,0.00019969,2]
[408078794,1773114656805,-500.0,0.00019969,2]
[408078795,1773114656814,-500.0,0.00019969,2]
[408078796,1773114656824,-500.0,0.00019969,2]
[408078797,1773114656834,-500.0,0.00019969,2]
[408078798,1773114656843,-500.0,0.00019969,2]
[408078799,1773114656852,-536.52728707,0.00019969,2]
[408078800,1773114656862,-500.0,0.00019969,2]
[408078801,1773114656871,-717.98,0.00019969,2]
[408078802,1773114656880,-500.0,0.00019969,2]
[408078803,1773114656890,-717.98,0.00019969,2]
[408078804,1773114656898,-500.0,0.00019969,2]
[408078805,1773114656908,-717.98,0.00019969,2]
[408078806,1773114656917,-500.0,0.00019969,2]
[408078807,1773114656926,-717.98,0.00019969,2]
[408078808,1773114656935,-500.0,0.00019969,2]
[408078809,1773114656944,-500.0,0.00019969,2]
[408078810,1773114656953,-717.98,0.00019969,2]
[408078811,1773114656962,-500.0,0.00019969,2]
[408078812,1773114656971,-717.98,0.00019969,2]
[408078813,1773114656980,-222.96698483,0.00019969,2]
[408078814,1773114656989,-500.0,0.00019969,2]
[408078815,1773114656998,-717.98,0.00019969,2]
[408078816,1773114657008,-500.0,0.00019969,2]
[408078817,1773114657017,-500.0,0.00019969,2]
[408078818,1773114657027,-500.0,0.00019969,2]
[408078819,1773114657036,-159.66820877,0.00019969,2]
[408078820,1773114657046,-500.0,0.00019969,2]
[408078821,1773114657055,-500.0,0.00019969,2]
[408078822,1773114657064,-500.0,0.00019969,2]
[408078823,1773114657073,-500.0,0.00019969,2]
[408078824,1773114657081,-500.0,0.00019969,2]
[408078825,1773114657090,-500.0,0.00019969,2]
[408078826,1773114657099,-500.0,0.00019969,2]
[408078827,1773114657108,-540.53117105,0.00019969,2]
[408078828,1773114657117,-356.41356887,0.00019969,2]
[408078829,1773114657126,-500.0,0.00019969,2]
[408078830,1773114657136,-500.0,0.00019969,2]
[408078831,1773114657145,-500.0,0.00019969,2]
[408078832,1773114657154,-500.0,0.00019969,2]
[408078833,1773114657163,-600.05759372,0.00019969,2]
[408078834,1773114657173,-500.0,0.00019969,2]
[408078835,1773114657182,-500.0,0.00019969,2]
[408078836,1773114657191,-500.0,0.00019969,2]
[408078837,1773114657200,-500.0,0.00019969,2]
[408078838,1773114657209,-500.0,0.00019969,2]
[408078839,1773114657218,-500.0,0.00019969,2]
[408078840,1773114657228,-500.0,0.00019969,2]
[408078841,1773114657237,-500.0,0.00019969,2]
[408078842,1773114657246,-500.0,0.00019969,2]
[408078843,1773114657256,-500.0,0.00019969,2]
[408078844,1773114657265,-591.45771308,0.00019969,2]
[408078845,1773114657274,-888.2,0.00019969,2]
[408078846,1773114657283,-500.0,0.00019969,2]
[408078847,1773114657293,-888.2,0.00019969,2]
[408078848,1773114657302,-888.2,0.00019969,2]
[408078849,1773114657311,-888.2,0.00019969,2]
[408078850,1773114657321,-888.2,0.00019969,2]
[408078851,1773114657331,-888.2,0.00019969,2]
[408078852,1773114657341,-888.2,0.00019969,2]
[408078853,1773114657350,-500.0,0.00019969,2]
[408078854,1773114657359,-500.0,0.00019969,2]
[408078855,1773114657369,-500.0,0.00019969,2]
[408078856,1773114657378,-500.0,0.00019969,2]
[408078857,1773114657388,-500.0,0.00019969,2]
[408078858,1773114657398,-500.0,0.00019969,2]
[408078859,1773114657407,-500.0,0.00019969,2]
[408078860,1773114657417,-227.51720605,0.00019969,2]
[408078861,1773114658246,-79.22758647,0.00019969,2]
[408078862,1773114658256,-500.0,0.00019969,2]
[408078863,1773114658266,-500.0,0.00019969,2]
[408078864,1773114658276,-500.0,0.00019969,2]
[408078865,1773114658286,-500.0,0.00019969,2]
[408078866,1773114658295,-500.0,0.00019969,2]
[408078867,1773114658305,-500.0,0.00019969,2]
[408078868,1773114658315,-54.95555777,0.00019969,2]
[408078869,1773114658332,-236.93244978,0.00019969,2]
[408078870,1773114658342,-500.0,0.00019969,2]
[408078871,1773114658351,-500.0,0.00019969,2]
[408078872,1773114658362,-500.0,0.00019969,2]
[408078873,1773114658371,-500.0,0.00019969,2]
[408078874,1773114658381,-500.0,0.00019969,2]
[408078875,1773114658391,-500.0,0.00019969,2]
[408078876,1773114658402,-224.16131837,0.00019969,2]
[408078878,1773115107901,-710.44098945,0.00015,30]
[408078879,1773115107924,-364.56437979,0.00015,30]
[408078880,1773115160716,671.67523677,0.00013,2]
[408078891,1773115209500,-165.89077475,0.000164,2]
[408078892,1773115209524,-1200.0,0.00016499,2]
[408078893,1773115209549,-300.0,0.00016499,2]
[408078894,1773115209571,-384.10922525,0.00016499,2]
[408078910,1773115356911,15328.32476323,9.5e-05,3]
[408078911,1773115356935,24671.71523677,9.5e-05,3]
[408078912,1773115385490,200.0,0.0002,120]
[408078940,1773115831631,-2282.0,0.00015117,2]
[408078942,1773115831640,-200.0,0.00016589,2]
[408078944,1773115831650,-1200.0,0.00016626,2]
[408078945,1773115831659,-550.0,0.00016627,2]
[408078946,1773115831668,-300.0,0.00016627,2]
[408078947,1773115831678,-251.0,0.00016627,2]
[408078948,1773115831687,-195.0,0.00016628,2]
[408078949,1773115831696,-195.0,0.00016628,2]
[408078950,1773115831706,-195.0,0.00016628,2]
[408078951,1773115831715,-195.0,0.00016628,2]
[408078952,1773115831725,-195.0,0.00016628,2]
[408078953,1773115831735,-250.92685591,0.00016628,2]
[408078954,1773115831747,-2500.0,0.00016628,2]
[408078955,1773115831760,-2500.0,0.00016628,2]
[408078956,1773115831770,-2500.0,0.00016628,2]
[408078957,1773115831779,-2500.0,0.00016628,2]
[408078958,1773115831789,-2500.0,0.00016628,2]
[408078959,1773115831798,-1762.27514874,0.000169,2]
[408078960,1773115831808,-200.0,0.00016948,2]
[408078961,1773115831818,-500.0,0.0001699,2]
[408078962,1773115831827,-500.0,0.0001699,2]
[408078963,1773115831836,-500.0,0.0001699,2]
[408078965,1773115831845,-500.0,0.0001699,2]
[408078966,1773115831854,-500.0,0.0001699,2]
[408078967,1773115831864,-500.0,0.0001699,2]
[408078968,1773115831877,-500.0,0.0001699,2]
[408078969,1773115831886,-500.0,0.0001699,2]
[408078970,1773115831895,-175.96557541,0.0001699,2]
[408078971,1773115831904,-151.0,0.0001699,2]
[408078972,1773115831914,-151.0,0.0001699,2]
[408078973,1773115831923,-151.0,0.0001699,2]
[408078974,1773115831934,-151.0,0.0001699,2]
[408078975,1773115831944,-151.0,0.0001699,2]
[408078976,1773115831955,-151.0,0.0001699,2]
[408078977,1773115831965,-151.0,0.0001699,2]
[408078978,1773115831975,-151.0,0.0001699,2]
[408078979,1773115831984,-151.0,0.0001699,2]
[408078980,1773115831994,-151.0,0.0001699,2]
[408078981,1773115832003,-151.0,0.0001699,2]
[408078982,1773115832013,-151.0,0.0001699,2]
[408078983,1773115832022,-151.0,0.0001699,2]
[408078984,1773115832031,-151.0,0.0001699,2]
[408078985,1773115832041,-151.0,0.0001699,2]
[408078986,1773115832050,-151.0,0.0001699,2]
[408078987,1773115832059,-154.10952011,0.0001699,2]
[408078988,1773115832069,-119765.2262833,0.00017,2]
[408078989,1773115832078,-504.0,0.00017,2]
[408078990,1773115832087,-504.0,0.00017,2]
[408078991,1773115832098,-503.0,0.00017,2]
[408078992,1773115832108,-503.0,0.00017,2]
[408078993,1773115832118,-1016.37201815,0.00017009,2]
[408078994,1773115832127,-500.0,0.00017107,2]
[408078995,1773115832137,-500.0,0.00017107,2]
[408078996,1773115832146,-500.0,0.00017107,2]
[408078997,1773115832156,-500.0,0.00017107,2]
[408078998,1773115832165,-500.0,0.00017107,2]
[408078999,1773115832175,-500.0,0.00017107,2]
[408079000,1773115832184,-500.0,0.00017107,2]
[408079001,1773115832193,-500.0,0.00017107,2]
[408079002,1773115832202,-500.0,0.00017107,2]
[408079003,1773115832211,-500.0,0.00017107,2]
[408079004,1773115832221,-500.0,0.00017107,2]
[408079005,1773115832230,-500.0,0.00017107,2]
[408079006,1773115832239,-500.0,0.00017107,2]
[408079007,1773115832248,-500.0,0.00017107,2]
[408079008,1773115832257,-500.0,0.00017107,2]
[408079009,1773115832267,-500.0,0.00017107,2]
[408079010,1773115832276,-500.0,0.00017107,2]
[408079011,1773115832286,-500.0,0.00017107,2]
[408079012,1773115832296,-500.0,0.00017107,2]
[408079013,1773115832305,-500.0,0.00017107,2]
[408079014,1773115832315,-500.0,0.00017107,2]
[408079015,1773115832324,-500.0,0.00017107,2]
[408079016,1773115832333,-500.0,0.00017107,2]
[408079017,1773115832342,-500.0,0.00017107,2]
[408079018,1773115832351,-500.0,0.00017107,2]
[408079019,1773115832360,-500.0,0.00017107,2]
[408079020,1773115832369,-500.0,0.00017107,2]
[408079021,1773115832378,-500.0,0.00017107,2]
[408079022,1773115832387,-591.11366498,0.00017107,2]
[408079023,1773115832396,-500.0,0.00017107,2]
[408079024,1773115832405,-500.0,0.00017107,2]
[408079025,1773115832415,-587.02981351,0.00017107,2]
[408079026,1773115832424,-500.0,0.00017107,2]
[408079027,1773115832718,-500.0,0.00017107,2]
[408079028,1773115832738,-500.0,0.00017107,2]
[408079029,1773115832748,-500.0,0.00017107,2]
[408079030,1773115832760,-500.0,0.00017107,2]
[408079031,1773115832770,-500.0,0.00017107,2]
[408079032,1773115832779,-500.0,0.00017107,2]
[408079033,1773115832789,-500.0,0.00017107,2]
[408079034,1773115832800,-500.0,0.00017107,2]
[408079035,1773115832810,-500.0,0.00017107,2]
[408079036,1773115832820,-500.0,0.00017107,2]
[408079037,1773115832829,-500.0,0.00017107,2]
[408079038,1773115832838,-500.0,0.00017107,2]
[408079039,1773115832848,-500.0,0.00017107,2]
[408079040,1773115832857,-500.0,0.00017107,2]
[408079041,1773115832870,-500.0,0.00017107,2]
[408079042,1773115832881,-500.0,0.00017107,2]
[408079043,1773115832892,-500.0,0.00017107,2]
[408079044,1773115832901,-500.0,0.00017107,2]
[408079045,1773115832911,-54544.61754725,0.0001711,2]
[408079046,1773115832922,-840.733047,0.00017179,7]
[408079047,1773115832931,-1016.37201811,0.00017327,2]
[408079048,1773115832941,-2927.78,0.00017507,2]
[408079049,1773115832952,-500.0,0.00017527,2]
[408079050,1773115832962,-514.89612966,0.00017527,2]
[408079051,1773115832972,-507.77819291,0.00017527,2]
[408079052,1773115832982,-500.0,0.00017527,2]
[408079053,1773115832992,-507.27777235,0.00017527,2]
[408079054,1773115833002,-500.0,0.00017527,2]
[408079055,1773115833011,-514.78454423,0.00017527,2]
[408079056,1773115833021,-501.77338633,0.00017527,2]
[408079057,1773115833031,-500.0,0.00017527,2]
[408079058,1773115833041,-511.40789189,0.00017527,2]
[408079059,1773115833051,-500.0,0.00017527,2]
[408079060,1773115833061,-500.0,0.00017527,2]
[408079061,1773115833072,-500.0,0.00017527,2]
[408079062,1773115833082,-500.0,0.00017527,2]
[408079063,1773115833092,-500.0,0.00017527,2]
[408079064,1773115833101,-500.0,0.00017527,2]
[408079065,1773115833111,-500.0,0.00017527,2]
[408079066,1773115833121,-500.0,0.00017527,2]
[408079067,1773115833130,-500.0,0.00017527,2]
[408079068,1773115833139,-500.0,0.00017527,2]
[408079069,1773115833148,-500.0,0.00017527,2]
[408079070,1773115833158,-519.79032299,0.00017527,2]
[408079071,1773115833167,-500.0,0.00017527,2]
[408079072,1773115833176,-500.0,0.00017527,2]
[408079073,1773115833185,-500.0,0.00017527,2]
[408079074,1773115833195,-500.0,0.00017527,2]
[408079075,1773115833204,-500.0,0.00017527,2]
[408079076,1773115833214,-500.0,0.00017527,2]
[408079077,1773115833223,-500.0,0.00017527,2]
[408079078,1773115833234,-500.0,0.00017527,2]
[408079079,1773115833244,-500.0,0.00017527,2]
[408079080,1773115833254,-500.0,0.00017527,2]
[408079081,1773115833264,-500.0,0.00017527,2]
[408079082,1773115833274,-500.0,0.00017527,2]
[408079083,1773115833284,-500.0,0.00017527,2]
[408079084,1773115833294,-500.0,0.00017527,2]
[408079085,1773115833304,-315.63,0.00017527,2]
[408079086,1773115833313,-500.0,0.00017627,2]
[408079087,1773115833323,-500.0,0.00017627,2]
[408079088,1773115833332,-500.0,0.00017627,2]
[408079089,1773115833342,-288.52,0.00017642,2]
[408079090,1773115833352,-1016.37201811,0.00017645,2]
[408079091,1773115833361,-500.0,0.00017753,2]
[408079092,1773115833371,-802.12426121,0.00017808,2]
[408079093,1773115833380,-4703.67,0.00017856,2]
[408079094,1773115833390,-1375.34538153,0.000179,2]
[408079095,1773115833399,-1375.34538153,0.000179,2]
[408079096,1773115833409,-1375.34538153,0.000179,2]
[408079097,1773115833418,-1375.34538153,0.000179,2]
[408079098,1773115833428,-256.019462,0.00017944,7]
[408079099,1773115833438,-150.0,0.00017951,2]
[408079100,1773115833447,-1016.37201811,0.00017963,2]
[408079101,1773115833456,-13457.76362143,0.00018,5]
[408079102,1773115833466,-481.01471195,0.00018,2]
[408079103,1773115833475,-1197.75782958,0.00018,2]
[408079104,1773115833485,-500.0,0.00018099,2]
[408079105,1773115833495,-1787.54805324,0.000181,2]
[408079106,1773115833504,-420.0,0.00018167,2]
[408079107,1773115833514,-3552.71969971,0.0001821,2]
[408079108,1773115833525,-1680.0,0.00018257,2]
[408079109,1773115833534,-1016.37201811,0.00018281,2]
[408079110,1773115833544,-600.0,0.00018356,7]
[408079111,1773115833554,-500.0,0.00018356,7]
[408079112,1773115833564,-900.0,0.00018356,7]
[408079113,1773115833573,-22413.45,0.00018356,2]
[408079114,1773115833584,-196.25973789,0.00018499,2]
[408079115,1773115833593,-1016.37201811,0.000186,2]
[408079116,1773115833603,-8484.1567,0.00018651,2]
[408079117,1773115833612,-4499.7114,0.00018651,2]
[408079118,1773115833622,-2500.0,0.00018651,2]
[408079119,1773115833631,-1084.69968391,0.00018688,2]
[408079120,1773115833640,-196.25973785,0.00018695,2]
[408079121,1773115833650,-500.0,0.00018707,2]
[408079122,1773115833659,-500.0,0.0001875,2]
[408079123,1773115833668,-500.0,0.0001875,2]
[408079124,1773115833678,-583.40097691,0.0001875,2]
[408079125,1773115833687,-500.0,0.0001875,2]
[408079126,1773115833696,-500.0,0.0001875,2]
[408079127,1773115833706,-513.30795353,0.0001875,2]
[408079128,1773115833716,-500.0,0.0001875,2]
[408079129,1773115833725,-7659.96299796,0.00018751,2]
[408079130,1773115834498,-8213.57519131,0.00018751,2]
[408079131,1773115834529,-1611.15630401,0.00018751,2]
[408079132,1773115834540,-5000.00113981,0.00018751,2]
[408079139,1773115839919,-1390.02,0.00018751,2]
[408079140,1773115840184,-173645.65426691,0.00018751,2]
[408079141,1773115840193,-1084.69968382,0.0001882,2]
[408079142,1773115840202,-168.0,0.00018846,2]
[408079143,1773115840211,-2839.3,0.00018851,2]
[408079144,1773115840220,-3733.47,0.00018888,2]
[408079145,1773115840229,-196.25973785,0.00018891,2]
[408079146,1773115840238,-150.0,0.00018899,2]
[408079147,1773115840247,-242.04,0.00018899,2]
[408079148,1773115840256,-1007.68,0.00018899,2]
[408079149,1773115840265,-1016.37201811,0.00018918,2]
[408079150,1773115840275,-799.26915761,0.0001894,2]
[408079151,1773115840285,-616.94050343,0.0001894,2]
[408079152,1773115840294,-1000.0,0.0001894,2]
[408079153,1773115840303,-743.50770149,0.0001894,2]
[408079154,1773115840312,-500.0,0.0001894,2]
[408079155,1773115840322,-8295.92985296,0.0001894,2]
[408079156,1773115840332,-200.0,0.0001894,2]
[408079157,1773115840342,-174.61919141,0.0001894,2]
[408079158,1773115840351,-668.65185757,0.0001894,2]
[408079159,1773115840366,-1500.0,0.0001894,2]
[408079160,1773115840376,-1500.0,0.0001894,2]
[408079161,1773115840385,-1541.02516385,0.0001894,2]
[408079162,1773115840395,-262.90206542,0.0001894,2]
[408079163,1773115840407,-150.0,0.00018948,2]
[408079164,1773115840417,-1084.69968382,0.00018951,2]
[408079165,1773115840426,-2568.02714222,0.00019,2]
[408079166,1773115840435,-500.0,0.00019,5]
[408079167,1773115840445,-235.69610359,0.00019,2]
[408079168,1773115840455,-5239.4558166,0.00019,3]
[408079169,1773115840464,-353.39112616,0.00019073,2]
[408079171,1773115840474,-1084.69968382,0.00019083,2]
[408079172,1773115840483,-196.25973785,0.00019087,2]
[408079173,1773115840492,-1227.40844035,0.000191,2]
[408079174,1773115840502,-787.0,0.00019178,2]
[408079175,1773115840511,-1000.0,0.00019178,2]
[408079176,1773115840522,-168.0,0.00019183,2]
[408079177,1773115840532,-1000.0,0.00019199,2]
[408079180,1773115840924,-2000.0,0.000192,2]
[408079181,1773115840935,-161.0,0.000192,2]
[408079182,1773115840944,-158.44973529,0.00019205,2]
[408079183,1773115840954,-1084.69968382,0.00019214,2]
[408079184,1773115840963,-1016.37201811,0.00019236,2]
[408079185,1773115840972,-350.0,0.00019272,2]
[408079186,1773115840982,-621.42600632,0.00019273,2]
[408079187,1773115840991,-196.25973785,0.00019284,2]
[408079188,1773115841000,-200.0,0.0001929,2]
[408079189,1773115841010,-500.0,0.00019313,2]
[408079190,1773115841020,-493.62253166,0.00019338,2]
[408079191,1773115841033,-500.0,0.00019338,2]
[408079192,1773115841044,-197.67011682,0.00019338,2]
[408079193,1773115841057,-217.12814184,0.00019338,2]
[408079194,1773115841066,-500.0,0.00019338,2]
[408079195,1773115841077,-499.99,0.00019339,2]
[408079196,1773115841087,-150.99,0.00019339,2]
[408079197,1773115841098,-350.42,0.00019339,2]
[408079198,1773115841108,-9999.99,0.00019339,2]
[408079199,1773115841118,-18286.82,0.00019339,2]
[408079200,1773115841129,-2978.39,0.00019339,2]
[408079201,1773115841138,-5320.51,0.00019339,2]
[408079202,1773115841147,-150.99,0.00019339,2]
[408079203,1773115841157,-6272.28,0.00019339,2]
[408079204,1773115841166,-6583.3,0.00019339,2]
[408079205,1773115841175,-11327.18,0.00019339,2]
[408079206,1773115841185,-299.99,0.00019339,7]
[408079207,1773115841195,-1084.69968382,0.00019346,2]
[408079208,1773115841204,-158.44973529,0.00019425,2]
[408079209,1773115841213,-164.0,0.00019429,2]
[408079210,1773115841222,-523.38923651,0.00019444,2]
[408079211,1773115841231,-600.0,0.00019452,7]
[408079212,1773115841243,-500.0,0.00019452,7]
[408079213,1773115841254,-900.0,0.00019452,7]
[408079214,1773115841264,-1000.0,0.00019452,2]
[408079215,1773115841273,-172.91703981,0.00019475,2]
[408079216,1773115841282,-160.0,0.00019475,2]
[408079217,1773115841292,-1084.69968382,0.00019477,2]
[408079218,1773115841303,-196.25973785,0.0001948,2]
[408079219,1773115841314,-1000.0,0.00019488,2]
[408079220,1773115841325,-307.20826908,0.00019488,2]
[408079221,1773115841335,-200.0,0.00019488,2]
[408079222,1773115841345,-181.08010149,0.00019488,2]
[408079223,1773115841355,-267.80418994,0.00019488,2]
[408079224,1773115841365,-272.62944185,0.00019488,2]
[408079225,1773115841375,-20723.203336,0.00019496,2]
[408079226,1773115841384,-41582.77327486,0.000195,3]
[408079227,1773115841395,-500.0,0.00019503,2]
[408079228,1773115841414,-150.0,0.00019503,2]
[408079229,1773115841426,-500.0,0.00019503,2]
[408079230,1773115841438,-504.0,0.0001952,4]
[408079231,1773115841447,-1016.37201811,0.00019554,2]
[408079232,1773115841457,-501.77442938,0.00019558,2]
[408079233,1773115841468,-150.0,0.00019558,2]
[408079234,1773115841478,-500.0,0.00019558,2]
[408079235,1773115841488,-586.12738681,0.000196,2]
[408079236,1773115841499,-24508.49123063,0.000196,4]
[408079237,1773115841508,-1084.69968382,0.00019609,2]
[408079238,1773115841519,-500.0,0.00019613,2]
[408079239,1773115841528,-150.0,0.00019619,2]
[408079240,1773115841538,-151.0,0.00019626,2]
[408079241,1773115841547,-151.0,0.00019626,2]
[408079242,1773115841557,-151.0,0.00019626,2]
[408079243,1773115841567,-151.0,0.00019626,2]
[408079244,1773115841576,-151.0,0.00019626,2]
[408079245,1773115841586,-729.464813,0.00019626,2]
[408079246,1773115841596,-151.0,0.00019626,2]
[408079247,1773115841606,-152.981753,0.00019626,2]
[408079248,1773115841615,-729.464813,0.00019626,2]
[408079249,1773115841624,-151.0,0.00019626,2]
[408079250,1773115841634,-729.464813,0.00019626,2]
[408079251,1773115841643,-151.0,0.00019626,2]
[408079252,1773115841653,-180.239223,0.00019626,2]
[408079253,1773115841662,-729.464813,0.00019626,2]
[408079254,1773115841671,-180.239223,0.00019626,2]
[408079255,1773115841681,-151.0,0.00019626,2]
[408079256,1773115841690,-648.353944,0.00019626,2]
[408079257,1773115841700,-180.239223,0.00019626,2]
[408079258,1773115841709,-648.353944,0.00019626,2]
[408079259,1773115841720,-648.353944,0.00019626,2]
[408079260,1773115841729,-648.353944,0.00019626,2]
[408079261,1773115841738,-222.950142,0.00019626,2]
[408079262,1773115841748,-222.950142,0.00019626,2]
[408079263,1773115841757,-222.950142,0.00019626,2]
[408079264,1773115841770,-180.239223,0.00019626,2]
[408079265,1773115841780,-1308.367659,0.00019626,2]
[408079266,1773115841790,-1308.367659,0.00019626,2]
[408079267,1773115841799,-1308.367659,0.00019626,2]
[408079268,1773115841809,-1308.367659,0.00019626,2]
[408079269,1773115841820,-222.950142,0.00019626,2]
[408079270,1773115841829,-151.0,0.00019626,2]
[408079271,1773115841838,-158.767557,0.00019626,2]
[408079272,1773115841847,-151.0,0.00019626,2]
[408079273,1773115841857,-151.0,0.00019626,2]
[408079274,1773115841867,-151.0,0.00019626,2]
[408079275,1773115841882,-151.0,0.00019626,2]
[408079276,1773115841892,-151.0,0.00019626,2]
[408079277,1773115841901,-151.0,0.00019626,2]
[408079278,1773115841913,-151.0,0.00019626,2]
[408079279,1773115841923,-151.0,0.00019626,2]
[408079280,1773115841933,-151.0,0.00019626,2]
[408079281,1773115841944,-151.0,0.00019626,2]
[408079282,1773115841955,-151.0,0.00019626,2]
[408079283,1773115841969,-193.160826,0.00019626,2]
[408079284,1773115841979,-151.0,0.00019626,2]
[408079285,1773115841992,-440.618346,0.00019626,2]
[408079286,1773115842003,-619.0,0.00019626,2]
[408079287,1773115842014,-1280.0,0.00019626,2]
[408079288,1773115842027,-1213.0,0.00019626,2]
[408079289,1773115842040,-922.0,0.00019626,2]
[408079290,1773115842050,-771.0894982,0.00019626,2]
[408079292,1773115842818,-440.618346,0.00019626,2]
[408079293,1773115842828,-440.618346,0.00019626,2]
[408079294,1773115842838,-1118.8683045,0.00019626,2]
[408079298,1773115845590,-440.618346,0.00019626,2]
[408079299,1773115845599,-61.381654,0.00019626,2]
[408079300,1773115845645,-119.038111,0.00019626,2]
[408079301,1773115845655,-571.0421973,0.00019626,2]
[408079302,1773115845664,-414.0,0.00019626,2]
[408079303,1773115845675,-3750.0,0.00019626,2]
[408079304,1773115845685,-500.0,0.00019667,2]
[408079305,1773115845694,-196.25973785,0.00019676,2]
[408079306,1773115845703,-2802.0,0.0001968,2]
[408079307,1773115845713,-500.0,0.00019722,2]
[408079308,1773115845722,-151.0,0.00019726,2]
[408079309,1773115845731,-151.0,0.00019726,2]
[408079310,1773115845741,-289.705001,0.00019726,2]
[408079311,1773115845750,-151.0,0.00019726,2]
[408079312,1773115845760,-151.0,0.00019726,2]
[408079313,1773115845769,-221.239915,0.00019726,2]
[408079314,1773115845779,-151.000024,0.00019726,2]
[408079315,1773115845788,-3263.55543,0.00019726,2]
[408079316,1773115845797,-3263.55543,0.00019726,2]
[408079317,1773115845806,-151.0,0.00019726,2]
[408079318,1773115845815,-3263.55543,0.00019726,2]
[408079319,1773115845824,-151.0,0.00019726,2]
[408079320,1773115845835,-588.997636,0.00019726,2]
[408079321,1773115845847,-3263.55543,0.00019726,2]
[408079322,1773115845858,-151.00002,0.00019726,2]
[408079323,1773115845871,-226.891902,0.00019726,2]
[408079324,1773115845883,-588.997636,0.00019726,2]
[408079325,1773115845892,-151.0,0.00019726,2]
[408079326,1773115845901,-588.997636,0.00019726,2]
[408079341,1773115846222,-151.0,0.00019726,2]
[408079342,1773115846232,-588.997636,0.00019726,2]
[408079343,1773115846242,-151.0,0.00019726,2]
[408079344,1773115846251,-211.404821,0.00019726,2]
[408079345,1773115846260,-597.979418,0.00019726,2]
[408079346,1773115846271,-597.979418,0.00019726,2]
[408079347,1773115846280,-982.349554,0.00019726,2]
[408079348,1773115846290,-597.979418,0.00019726,2]
[408079349,1773115846299,-647.376851,0.00019726,2]
[408079350,1773115846309,-785.458092,0.00019726,2]
[408079351,1773115846319,-982.349554,0.00019726,2]
[408079352,1773115846329,-597.979418,0.00019726,2]
[408079353,1773115846339,-647.376851,0.00019726,2]
[408079354,1773115846348,-982.349554,0.00019726,2]
[408079355,1773115846358,-785.458092,0.00019726,2]
[408079356,1773115846367,-647.376851,0.00019726,2]
[408079357,1773115846377,-4275.19293585,0.00019726,2]
[408079358,1773115846390,-75.31723915,0.00019726,2]
[408079359,1773115846399,-351.50030006,0.00019726,2]
[408079360,1773115846417,-520.0,0.00019726,2]
[408079361,1773115846454,-110.84925394,0.00019726,2]
[408079362,1773115846465,-785.458092,0.00019726,2]
[408079363,1773115846475,-647.376851,0.00019726,2]
[408079364,1773115846484,-4350.510175,0.00019726,2]
[408079365,1773115846495,-785.458092,0.00019726,2]